DEPARTMENT FAMILY,ENTITY,DATE,EXPENSE TYPE,EXPENSE AREA,SUPPLIER,TRANSACTION NUMBER,AMOUNT,DESCRIPTION
DEPARTMENT OF HEALTH,BLACKPOOL TEACHING HOSPITALS NHS FT,22-Oct-15,LABORATORY REAGENTS,PATHOLOGY,BECKMAN COULTER UK,5281399,"35,640.12",LABORATORY EQUIPMENT - PURCHASES
DEPARTMENT OF HEALTH,BLACKPOOL TEACHING HOSPITALS NHS FT,22-Oct-15,LABORATORY REAGENTS,PATHOLOGY,BECKMAN COULTER UK,5281400,"35,640.12",LABORATORY EQUIPMENT - PURCHASES
DEPARTMENT OF HEALTH,BLACKPOOL TEACHING HOSPITALS NHS FT,27-Oct-15,LABORATORY REAGENTS,PATHOLOGY,BIOMERIEUX U K LTD,5282348,"33,292.97",LABORATORY EQUIPMENT - PURCHASES
DEPARTMENT OF HEALTH,BLACKPOOL TEACHING HOSPITALS NHS FT,06-Oct-15,TELEPHONE RENTAL AND CALL CHARGES,ICT,BT TELEPHONE PAYMENT CENTRE,5276996,"53,770.02",TELEPHONE RENTAL AND CALL CHARGES
DEPARTMENT OF HEALTH,BLACKPOOL TEACHING HOSPITALS NHS FT,09-Oct-15,CONTRACT : PHOTOCOPYING RENTAL AND CHARGES,ICT,CANON (UK) LTD,5277158,"39,466.55",EXTERNAL GENERAL SERVICE CONTRACTS
DEPARTMENT OF HEALTH,BLACKPOOL TEACHING HOSPITALS NHS FT,28-Oct-15,CONTRACT : PHOTOCOPYING RENTAL AND CHARGES,ICT,CANON (UK) LTD,5283245,"56,777.07",EXTERNAL GENERAL SERVICE CONTRACTS
DEPARTMENT OF HEALTH,BLACKPOOL TEACHING HOSPITALS NHS FT,12-Oct-15,MEDICAL AND SURGICAL EQUIPMENT ,SPECIALIST MEDICINE,CHG-MERIDIAN COMPUTER LEASING UK LTD,5277419,"65,854.85",MEDICAL AND SURGICAL EQUIPMENT LEASES
DEPARTMENT OF HEALTH,BLACKPOOL TEACHING HOSPITALS NHS FT,21-Oct-15,NON HEALTHCARE SERVICES FROM OTHER NHS BODIES,SPECIALIST MEDICINE,EAST LANCASHIRE HOSPITALS NHS TRUST,5281433,"42,683.00",BOWEL CANCER SCREENING
DEPARTMENT OF HEALTH,BLACKPOOL TEACHING HOSPITALS NHS FT,27-Oct-15,COMPUTER MAINTENANCE,WOMENS HEALTH,EUROKING MATERNITY SOFTWARE SOLUTIONS LTD,5282505,"28,200.00",ICT MAINTENANCE SERVICES
DEPARTMENT OF HEALTH,BLACKPOOL TEACHING HOSPITALS NHS FT,06-Oct-15,MEDICAL AND SURGICAL EQUIPMENT GENERAL,CLINICAL GOVERNANCE,HUNTLEIGH DIAGNOSTICS LTD,5275792,"50,672.28",MEDICAL AND SURGICAL EQUIPMENT PURCHASES
DEPARTMENT OF HEALTH,BLACKPOOL TEACHING HOSPITALS NHS FT,27-Oct-15,COMPUTER MAINTENANCE,ICT,INTEGRATED MEDICAL SOLUTIONS LTD,5282677,"41,958.00",ICT MAINTENANCE SERVICES
DEPARTMENT OF HEALTH,BLACKPOOL TEACHING HOSPITALS NHS FT,29-Oct-15,COMPUTER SOFTWARE / LICENSE  FEES,ICT,INTERSYSTEMS CORPORATION,5283425,"28,915.86","FURNITURE, OFFICE AND COMPUTER EQUIPMENT"
DEPARTMENT OF HEALTH,BLACKPOOL TEACHING HOSPITALS NHS FT,26-Oct-15,NON HEALTHCARE SERVICES FROM FOUNDATION TRUSTS,DIVISIONAL MANAGEMENT,LANCASHIRE CARE NHS FOUNDATION TRUST,5284488,"39,880.74",NON HEALTHCARE SERVICES FROM FOUNDATION TRUSTS
DEPARTMENT OF HEALTH,BLACKPOOL TEACHING HOSPITALS NHS FT,28-Oct-15,NON HEALTHCARE SERVICES FROM OTHER NHS BODIES,GENERAL SURGERY,LANCASHIRE TEACHING HOSPITALS NHS FOUNDATION TRUST,5284493,"40,201.00",NON HEALTHCARE SERVICES FROM OTHER NHS BODIES
DEPARTMENT OF HEALTH,BLACKPOOL TEACHING HOSPITALS NHS FT,26-Oct-15,NON HEALTHCARE SERVICES FROM OTHER NHS BODIES,PATHOLOGY,LANCASHIRE TEACHING HOSPITALS NHS FOUNDATION TRUST,5284461,"27,047.56",NON HEALTHCARE SERVICES FROM OTHER NHS BODIES
DEPARTMENT OF HEALTH,BLACKPOOL TEACHING HOSPITALS NHS FT,09-Oct-15,NON HEALTHCARE SERVICES FROM OTHER NHS BODIES,SPECIALIST MEDICINE,LANCASHIRE TEACHING HOSPITALS NHS FOUNDATION TRUST,5278349,"30,703.00",NON HEALTHCARE SERVICES FROM OTHER NHS BODIES
DEPARTMENT OF HEALTH,BLACKPOOL TEACHING HOSPITALS NHS FT,15-Oct-15,BLOOD PRODUCTS,PATHOLOGY,NHS BLOOD AND TRANSPLANT,5279619,"180,025.25",BLOOD PRODUCTS
DEPARTMENT OF HEALTH,BLACKPOOL TEACHING HOSPITALS NHS FT,16-Oct-15,NON HEALTHCARE SERVICES FROM OTHER NHS BODIES,DIVISIONAL MANAGEMENT,NHS PROPERTY SERVICES LTD,5279662,"93,479.02",PROPERTY RENTAL
DEPARTMENT OF HEALTH,BLACKPOOL TEACHING HOSPITALS NHS FT,16-Oct-15,NON HEALTHCARE SERVICES FROM OTHER NHS BODIES,DIVISIONAL MANAGEMENT,NHS PROPERTY SERVICES LTD,5279677,"82,498.69",PROPERTY RENTAL
DEPARTMENT OF HEALTH,BLACKPOOL TEACHING HOSPITALS NHS FT,16-Oct-15,NON HEALTHCARE SERVICES FROM OTHER NHS BODIES,DIVISIONAL MANAGEMENT,NHS PROPERTY SERVICES LTD,5279655,"26,679.59",PROPERTY RENTAL
DEPARTMENT OF HEALTH,BLACKPOOL TEACHING HOSPITALS NHS FT,16-Oct-15,NON HEALTHCARE SERVICES FROM OTHER NHS BODIES,DIVISIONAL MANAGEMENT,NHS PROPERTY SERVICES LTD,5279660,"29,447.04",PROPERTY RENTAL
DEPARTMENT OF HEALTH,BLACKPOOL TEACHING HOSPITALS NHS FT,16-Oct-15,NON HEALTHCARE SERVICES FROM OTHER NHS BODIES,DIVISIONAL MANAGEMENT,NHS PROPERTY SERVICES LTD,5279672,"36,836.96",PROPERTY RENTAL
DEPARTMENT OF HEALTH,BLACKPOOL TEACHING HOSPITALS NHS FT,16-Oct-15,NON HEALTHCARE SERVICES FROM OTHER NHS BODIES,DIVISIONAL MANAGEMENT,NHS PROPERTY SERVICES LTD,5279674,"300,446.65",PROPERTY RENTAL
DEPARTMENT OF HEALTH,BLACKPOOL TEACHING HOSPITALS NHS FT,26-Oct-15,MEDICAL AND SURGICAL EQUIPMENT GENERAL,EBME,NHS SUPPLY CHAIN,5282085,"134,054.41",MEDICAL AND SURGICAL EQUIPMENT MAINTENANCE
DEPARTMENT OF HEALTH,BLACKPOOL TEACHING HOSPITALS NHS FT,26-Oct-15,MEDICAL AND SURGICAL EQUIPMENT GENERAL,EBME,NHS SUPPLY CHAIN,5282091,"67,363.71",MEDICAL AND SURGICAL EQUIPMENT MAINTENANCE
DEPARTMENT OF HEALTH,BLACKPOOL TEACHING HOSPITALS NHS FT,26-Oct-15,X-RAY EQUIPMENT : MAINTENANCE,EBME,NHS SUPPLY CHAIN,5282086,"82,249.13",X-RAY EQUIPMENT : MAINTENANCE
DEPARTMENT OF HEALTH,BLACKPOOL TEACHING HOSPITALS NHS FT,26-Oct-15,X-RAY EQUIPMENT : MAINTENANCE,EBME,NHS SUPPLY CHAIN,5282089,"65,960.56",X-RAY EQUIPMENT : MAINTENANCE
DEPARTMENT OF HEALTH,BLACKPOOL TEACHING HOSPITALS NHS FT,27-Oct-15,LABORATORY REAGENTS,PATHOLOGY,ROCHE DIAGNOSTICS LTD,5282568,"64,565.40",LABORATORY EQUIPMENT - PURCHASES
DEPARTMENT OF HEALTH,BLACKPOOL TEACHING HOSPITALS NHS FT,08-Oct-15,LABORATORY REAGENTS,PATHOLOGY,SIEMENS HEALTHCARE DIAGNOSTICS LTD,5276455,"100,996.92",LABORATORY EQUIPMENT - PURCHASES
DEPARTMENT OF HEALTH,BLACKPOOL TEACHING HOSPITALS NHS FT,09-Oct-15,COMPUTER HARDWARE PURCHASES,ICT,SOFTCAT PLC,5277092,"28,035.59","FURNITURE, OFFICE AND COMPUTER EQUIPMENT"
DEPARTMENT OF HEALTH,BLACKPOOL TEACHING HOSPITALS NHS FT,02-Oct-15,COMPUTER MAINTENANCE,ICT,SOFTCAT PLC,5275078,"74,535.99",ICT MAINTENANCE SERVICES
DEPARTMENT OF HEALTH,BLACKPOOL TEACHING HOSPITALS NHS FT,12-Oct-15,STAFF CONSULTANCY AND SUPPORT,SPECIALIST SERVICES DIRECTORATE,UCLAN DENTAL CLINIC LIMITED,5277453,"29,957.00",EXTERNAL CONTRACT STAFFING AND CONSULTANCY
DEPARTMENT OF HEALTH,BLACKPOOL TEACHING HOSPITALS NHS FT,23-Oct-15,STAFF CONSULTANCY AND SUPPORT,HR & OD,MEDACS HEALTHCARE PLC,5283285,"47,171.01",EXTERNAL CONTRACT STAFFING AND CONSULTANCY
DEPARTMENT OF HEALTH,BLACKPOOL TEACHING HOSPITALS NHS FT,14-Oct-15,STAFF CONSULTANCY AND SUPPORT,HR & OD,MEDACS HEALTHCARE PLC,5279699,"54,000.00",EXTERNAL CONTRACT STAFFING AND CONSULTANCY
DEPARTMENT OF HEALTH,BLACKPOOL TEACHING HOSPITALS NHS FT,16-Oct-15,UTILITIES,HARD FM,NPOWER LTD,5280780,"56,728.05",ELECTRICITY
DEPARTMENT OF HEALTH,BLACKPOOL TEACHING HOSPITALS NHS FT,09-Oct-15,EXTERNAL CONTRACTS : DOMESTICS,SOFT FM,ISS FACILITY SERVICES HEALTHCARE,5277139,"305,833.67",CLEANING SERVICES
DEPARTMENT OF HEALTH,BLACKPOOL TEACHING HOSPITALS NHS FT,06-Oct-15,EXTERNAL CONTRACTS : LAUNDRY,SOFT FM,EXPRESS LAUNDERERS,5275587,"74,400.00",LAUNDRY SERVICES
DEPARTMENT OF HEALTH,BLACKPOOL TEACHING HOSPITALS NHS FT,29-Oct-15,EXTERNAL CONTRACTS : LAUNDRY,SOFT FM,EXPRESS LAUNDERERS,5283328,"62,000.00",LAUNDRY SERVICES
DEPARTMENT OF HEALTH,BLACKPOOL TEACHING HOSPITALS NHS FT,29-Oct-15,PHARMACY PRESCRIPTIONS,PHARMACY DRUGS INVENTORY,NHS BUSINESS SERVICES AUTHORITY,5284506,"54,629.33",SERVICES RECEIVED FROM N.H.S. BODIES
DEPARTMENT OF HEALTH,BLACKPOOL TEACHING HOSPITALS NHS FT,09-Oct-15,UTILITIES,HARD FM,GAZPROM MARKETING AND TRADING RETAIL LTD,5277587,"70,189.83",GAS 
DEPARTMENT OF HEALTH,BLACKPOOL TEACHING HOSPITALS NHS FT,05-Oct-15,HEALTHCARE FROM INDEPENDENT SECTOR,SPECIALIST SURGERY,SPIRAL HEALTH CIC,5275968,"252,863.97",HEALTHCARE FROM INDEPENDENT SECTOR
DEPARTMENT OF HEALTH,BLACKPOOL TEACHING HOSPITALS NHS FT,05-Oct-15,HEALTHCARE FROM INDEPENDENT SECTOR,SPECIALIST SURGERY,SPIRAL HEALTH CIC,5275969,"125,916.67",HEALTHCARE FROM INDEPENDENT SECTOR
DEPARTMENT OF HEALTH,BLACKPOOL TEACHING HOSPITALS NHS FT,07-Oct-15,HEART VALVES,CARDIOLOGY,MEDTRONIC LTD,5276259,"30,000.00",APPLIANCES AND IMPLANTS
DEPARTMENT OF HEALTH,BLACKPOOL TEACHING HOSPITALS NHS FT,21-Oct-15,HEART VALVES,CARDIOLOGY,MEDTRONIC LTD,5280971,"30,000.00",APPLIANCES AND IMPLANTS
DEPARTMENT OF HEALTH,BLACKPOOL TEACHING HOSPITALS NHS FT,23-Oct-15,HEART VALVES,CARDIOLOGY,EDWARDS LIFESCIENCES LTD,5281615,"44,400.00",APPLIANCES AND IMPLANTS
DEPARTMENT OF HEALTH,BLACKPOOL TEACHING HOSPITALS NHS FT,07-Oct-15,PACEMAKERS,CARDIOLOGY,MEDTRONIC LTD,5276257,"127,282.60",APPLIANCES AND IMPLANTS
DEPARTMENT OF HEALTH,BLACKPOOL TEACHING HOSPITALS NHS FT,08-Oct-15,PACEMAKERS,CARDIOLOGY,BOSTON SCIENTIFIC LTD,5276530,"90,312.00",APPLIANCES AND IMPLANTS
DEPARTMENT OF HEALTH,BLACKPOOL TEACHING HOSPITALS NHS FT,14-Oct-15,PACEMAKERS,CARDIOLOGY,MEDTRONIC LTD,5278543,"74,729.52",APPLIANCES AND IMPLANTS
DEPARTMENT OF HEALTH,BLACKPOOL TEACHING HOSPITALS NHS FT,14-Oct-15,PACEMAKERS,CARDIOLOGY,BOSTON SCIENTIFIC LTD,5278557,"53,904.00",APPLIANCES AND IMPLANTS
DEPARTMENT OF HEALTH,BLACKPOOL TEACHING HOSPITALS NHS FT,14-Oct-15,PACEMAKERS,CARDIOLOGY,BOSTON SCIENTIFIC LTD,5278559,"99,332.28",APPLIANCES AND IMPLANTS
DEPARTMENT OF HEALTH,BLACKPOOL TEACHING HOSPITALS NHS FT,19-Oct-15,PACEMAKERS,CARDIOLOGY,MEDTRONIC LTD,5279948,"44,332.92",APPLIANCES AND IMPLANTS
DEPARTMENT OF HEALTH,BLACKPOOL TEACHING HOSPITALS NHS FT,23-Oct-15,PACEMAKERS,CARDIOLOGY,BOSTON SCIENTIFIC LTD,5281622,"33,816.00",APPLIANCES AND IMPLANTS
DEPARTMENT OF HEALTH,BLACKPOOL TEACHING HOSPITALS NHS FT,30-Oct-15,PACEMAKERS,CARDIOLOGY,MEDTRONIC LTD,5284265,"101,310.48",APPLIANCES AND IMPLANTS
DEPARTMENT OF HEALTH,BLACKPOOL TEACHING HOSPITALS NHS FT,30-Oct-15,PACEMAKERS,CARDIOLOGY,BOSTON SCIENTIFIC LTD,5284275,"130,244.28",APPLIANCES AND IMPLANTS
DEPARTMENT OF HEALTH,BLACKPOOL TEACHING HOSPITALS NHS FT,06-Oct-15,UTILITIES,HARD FM,UNITED UTILITIES,5276064,"35,695.12",WATER
DEPARTMENT OF HEALTH,BLACKPOOL TEACHING HOSPITALS NHS FT,27-Oct-15,CAPITAL PURCHASES,CAPITAL PURCHASES,PHYSIO CONTROL UK SALES LTD,5282733,"30,374.68",CAPITAL PURCHASES
DEPARTMENT OF HEALTH,BLACKPOOL TEACHING HOSPITALS NHS FT,27-Oct-15,CAPITAL PURCHASES,CAPITAL PURCHASES,PHYSIO CONTROL UK SALES LTD,5282734,"269,304.00",CAPITAL PURCHASES
DEPARTMENT OF HEALTH,BLACKPOOL TEACHING HOSPITALS NHS FT,06-Oct-15,PHARMACY DRUGS INVENTORY,PHARMACY DRUGS INVENTORY,LLOYDS PHARMACY LTD,5275885,"433,935.35",PHARMACY STORES 
DEPARTMENT OF HEALTH,BLACKPOOL TEACHING HOSPITALS NHS FT,08-Oct-15,PHARMACY DRUGS INVENTORY,PHARMACY DRUGS INVENTORY,LLOYDS PHARMACY LTD,5276595,"342,885.19",PHARMACY STORES 
DEPARTMENT OF HEALTH,BLACKPOOL TEACHING HOSPITALS NHS FT,08-Oct-15,PHARMACY DRUGS INVENTORY,PHARMACY DRUGS INVENTORY,NOVARTIS PHARMACEUTICALS UK LTD,5276716,"26,712.00",PHARMACY STORES 
DEPARTMENT OF HEALTH,BLACKPOOL TEACHING HOSPITALS NHS FT,08-Oct-15,PHARMACY DRUGS INVENTORY,PHARMACY DRUGS INVENTORY,ROCHE PRODUCTS LTD,5276722,"41,078.08",PHARMACY STORES 
DEPARTMENT OF HEALTH,BLACKPOOL TEACHING HOSPITALS NHS FT,08-Oct-15,PHARMACY DRUGS INVENTORY,PHARMACY DRUGS INVENTORY,ROCHE PRODUCTS LTD,5276724,"29,746.49",PHARMACY STORES 
DEPARTMENT OF HEALTH,BLACKPOOL TEACHING HOSPITALS NHS FT,08-Oct-15,PHARMACY DRUGS INVENTORY,PHARMACY DRUGS INVENTORY,ROCHE PRODUCTS LTD,5276848,"34,093.97",PHARMACY STORES 
DEPARTMENT OF HEALTH,BLACKPOOL TEACHING HOSPITALS NHS FT,12-Oct-15,PHARMACY DRUGS INVENTORY,PHARMACY DRUGS INVENTORY,NOVARTIS PHARMACEUTICALS UK LTD,5277614,"45,410.40",PHARMACY STORES 
DEPARTMENT OF HEALTH,BLACKPOOL TEACHING HOSPITALS NHS FT,12-Oct-15,PHARMACY DRUGS INVENTORY,PHARMACY DRUGS INVENTORY,NOVARTIS PHARMACEUTICALS UK LTD,5277945,"40,068.00",PHARMACY STORES 
DEPARTMENT OF HEALTH,BLACKPOOL TEACHING HOSPITALS NHS FT,13-Oct-15,PHARMACY DRUGS INVENTORY,PHARMACY DRUGS INVENTORY,ROCHE PRODUCTS LTD,5278201,"25,721.10",PHARMACY STORES 
DEPARTMENT OF HEALTH,BLACKPOOL TEACHING HOSPITALS NHS FT,14-Oct-15,PHARMACY DRUGS INVENTORY,PHARMACY DRUGS INVENTORY,ROCHE PRODUCTS LTD,5278758,"37,022.06",PHARMACY STORES 
DEPARTMENT OF HEALTH,BLACKPOOL TEACHING HOSPITALS NHS FT,16-Oct-15,PHARMACY DRUGS INVENTORY,PHARMACY DRUGS INVENTORY,ROCHE PRODUCTS LTD,5279832,"26,824.09",PHARMACY STORES 
DEPARTMENT OF HEALTH,BLACKPOOL TEACHING HOSPITALS NHS FT,20-Oct-15,PHARMACY DRUGS INVENTORY,PHARMACY DRUGS INVENTORY,ROCHE PRODUCTS LTD,5280592,"34,420.94",PHARMACY STORES 
DEPARTMENT OF HEALTH,BLACKPOOL TEACHING HOSPITALS NHS FT,20-Oct-15,PHARMACY DRUGS INVENTORY,PHARMACY DRUGS INVENTORY,BAYER PLC,5280703,"27,268.80",PHARMACY STORES 
DEPARTMENT OF HEALTH,BLACKPOOL TEACHING HOSPITALS NHS FT,20-Oct-15,PHARMACY DRUGS INVENTORY,PHARMACY DRUGS INVENTORY,NOVARTIS PHARMACEUTICALS UK LTD,5280732,"29,917.44",PHARMACY STORES 
DEPARTMENT OF HEALTH,BLACKPOOL TEACHING HOSPITALS NHS FT,21-Oct-15,PHARMACY DRUGS INVENTORY,PHARMACY DRUGS INVENTORY,ROCHE PRODUCTS LTD,5281095,"36,537.77",PHARMACY STORES 
DEPARTMENT OF HEALTH,BLACKPOOL TEACHING HOSPITALS NHS FT,23-Oct-15,PHARMACY DRUGS INVENTORY,PHARMACY DRUGS INVENTORY,ROCHE PRODUCTS LTD,5281792,"28,242.80",PHARMACY STORES 
DEPARTMENT OF HEALTH,BLACKPOOL TEACHING HOSPITALS NHS FT,26-Oct-15,PHARMACY DRUGS INVENTORY,PHARMACY DRUGS INVENTORY,ALLIANCE HEALTHCARE DISTRIBUTION LTD,5282240,"27,432.00",PHARMACY STORES 
DEPARTMENT OF HEALTH,BLACKPOOL TEACHING HOSPITALS NHS FT,29-Oct-15,PHARMACY DRUGS INVENTORY,PHARMACY DRUGS INVENTORY,NOVARTIS PHARMACEUTICALS UK LTD,5283783,"41,136.48",PHARMACY STORES 
DEPARTMENT OF HEALTH,BLACKPOOL TEACHING HOSPITALS NHS FT,30-Oct-15,PHARMACY DRUGS INVENTORY,PHARMACY DRUGS INVENTORY,ROCHE PRODUCTS LTD,5284134,"39,544.87",PHARMACY STORES 
DEPARTMENT OF HEALTH,BLACKPOOL TEACHING HOSPITALS NHS FT,05-Oct-15,INTER NHS MEDICAL STAFF RECHARGES,MULTI-DIVISON,PENNINE ACUTE HOSPITALS NHS TRUST,5275970,"100,000.00",INTER NHS MEDICAL STAFF RECHARGES
DEPARTMENT OF HEALTH,BLACKPOOL TEACHING HOSPITALS NHS FT,05-Oct-15,INTER NHS MEDICAL STAFF RECHARGES,MULTI-DIVISON,PENNINE ACUTE HOSPITALS NHS TRUST,5275971,"550,000.00",INTER NHS MEDICAL STAFF RECHARGES
DEPARTMENT OF HEALTH,BLACKPOOL TEACHING HOSPITALS NHS FT,27-Oct-15,INTER NHS MEDICAL STAFF RECHARGES,MULTI-DIVISON,PENNINE ACUTE HOSPITALS NHS TRUST,5284468,"35,491.86",INTER NHS MEDICAL STAFF RECHARGES
DEPARTMENT OF HEALTH,BLACKPOOL TEACHING HOSPITALS NHS FT,02-Oct-15,NHS SUPPLY CHAIN CATALOGUE ITEMS,MULTI-DIVISIONAL CHARGE,NHS SUPPLY CHAIN,5276065,"120,196.60",NHS SUPPLY CHAIN CATALOGUE ITEMS
DEPARTMENT OF HEALTH,BLACKPOOL TEACHING HOSPITALS NHS FT,09-Oct-15,NHS SUPPLY CHAIN CATALOGUE ITEMS,MULTI-DIVISIONAL CHARGE,NHS SUPPLY CHAIN,5278372,"116,170.88",NHS SUPPLY CHAIN CATALOGUE ITEMS
DEPARTMENT OF HEALTH,BLACKPOOL TEACHING HOSPITALS NHS FT,19-Oct-15,NHS SUPPLY CHAIN CATALOGUE ITEMS,MULTI-DIVISIONAL CHARGE,NHS SUPPLY CHAIN,5280787,"95,249.78",NHS SUPPLY CHAIN CATALOGUE ITEMS
DEPARTMENT OF HEALTH,BLACKPOOL TEACHING HOSPITALS NHS FT,19-Oct-15,NHS SUPPLY CHAIN CATALOGUE ITEMS,MULTI-DIVISIONAL CHARGE,NHS SUPPLY CHAIN,5280788,"113,382.08",NHS SUPPLY CHAIN CATALOGUE ITEMS
DEPARTMENT OF HEALTH,BLACKPOOL TEACHING HOSPITALS NHS FT,30-Oct-15,NHS SUPPLY CHAIN CATALOGUE ITEMS,MULTI-DIVISIONAL CHARGE,NHS SUPPLY CHAIN,5284605,"110,666.95",NHS SUPPLY CHAIN CATALOGUE ITEMS
DEPARTMENT OF HEALTH,BLACKPOOL TEACHING HOSPITALS NHS FT,28-Oct-15,NHS SUPPLY CHAIN CATALOGUE ITEMS,MULTI-DIVISIONAL CHARGE,NHS SUPPLY CHAIN,5284623,"152,942.51",NHS SUPPLY CHAIN CATALOGUE ITEMS
